fUST/lending_fUST_20260222
["ID","MTS","AMOUNT","RATE_DAILY","PERIOD"]
[406340779,1771767062984,-5358.69409478,0.00041566,30]
[406340780,1771767062993,-1078.64393313,0.00041566,30]
[406340781,1771767063003,-627.12385053,0.00041566,30]
[406340782,1771767063013,-201440.90112161,0.00041566,45]
[406340783,1771767063022,-2094.66447672,0.00041566,5]
[406340784,1771767063032,-50943.37463343,0.00041566,30]
[406340785,1771767063042,-84612.08282701,0.00041566,30]
[406340786,1771767063052,-83006.03370179,0.00041566,30]
[406340787,1771767063061,-200.0,0.00041566,2]
[406340788,1771767063071,-160.0,0.00041566,120]
[406340789,1771767063080,-160.0,0.00041566,2]
[406340790,1771767063091,-2000.20000001,0.00041566,120]
[406340791,1771767063102,-160.0,0.00041566,2]
[406340792,1771767063111,-160.0,0.00041566,7]
[406340793,1771767063121,-195.203615,0.00041566,2]
[406340794,1771767063130,-195.203615,0.00041566,2]
[406340795,1771767063139,-195.203615,0.00041566,2]
[406340796,1771767063148,-195.203615,0.00041566,2]
[406340797,1771767063158,-195.203615,0.00041566,2]
[406340798,1771767063167,-195.203615,0.00041566,2]
[406340799,1771767063176,-195.203615,0.00041566,2]
[406340800,1771767063185,-195.203615,0.00041566,2]
[406340801,1771767063195,-195.203615,0.00041566,2]
[406340802,1771767063205,-195.203615,0.00041566,2]
[406340803,1771767063215,-195.203615,0.00041566,2]
[406340804,1771767063224,-195.203615,0.00041566,2]
[406340805,1771767063233,-195.203615,0.00041566,2]
[406340806,1771767063242,-195.203615,0.00041566,2]
[406340807,1771767063252,-195.203615,0.00041566,2]
[406340808,1771767063261,-195.203615,0.00041566,2]
[406340809,1771767063271,-195.203615,0.00041566,2]
[406340810,1771767063281,-195.203615,0.00041566,2]
[406340811,1771767063291,-195.203615,0.00041566,2]
[406340812,1771767063300,-195.203612,0.00041566,2]
[406340813,1771767063310,-160.0,0.00041566,2]
[406340814,1771767063320,-497.72,0.00041566,120]
[406340815,1771767063330,-151.0,0.00041566,120]
[406340816,1771767063339,-151.0,0.00041566,120]
[406340817,1771767063349,-151.0,0.00041566,120]
[406340818,1771767063359,-151.0,0.00041566,120]
[406340819,1771767063369,-151.0,0.00041566,120]
[406340820,1771767063378,-160.0,0.00041566,20]
[406340821,1771767063387,-151.0,0.00041566,120]
[406340822,1771767063395,-151.0,0.00041566,120]
[406340823,1771767063406,-151.0,0.00041566,120]
[406340824,1771767063414,-243.623892,0.00041566,120]
[406340825,1771767063424,-250.0,0.00041566,10]
[406340826,1771767063433,-250.0,0.00041566,10]
[406340827,1771767063442,-456.60495,0.00041566,10]
[406340828,1771767063451,-151.0,0.00041566,120]
[406340829,1771767063461,-151.0,0.00041566,120]
[406340830,1771767063470,-151.0,0.00041566,120]
[406340831,1771767063479,-151.0,0.00041566,120]
[406340832,1771767063489,-151.0,0.00041566,120]
[406340833,1771767063503,-173.470268,0.00041566,120]
[406340834,1771767063524,-151.0,0.00041566,120]
[406340835,1771767063542,-151.0,0.00041566,120]
[406340836,1771767063552,-151.0,0.00041566,120]
[406340837,1771767063562,-151.0,0.00041566,120]
[406340838,1771767063572,-151.0,0.00041566,120]
[406340839,1771767063582,-151.0,0.00041566,120]
[406340840,1771767063594,-164.602564,0.00041566,120]
[406340841,1771767063604,-180070.25309422,0.00041566,120]
[406340842,1771767063614,-283.0,0.00041566,120]
[406340843,1771767063624,-1926.18975963,0.00041619,14]
[406340844,1771767063634,-500.0,0.00041643,16]
[406340845,1771767063643,-200.0,0.00041643,16]
[406340846,1771767063652,-693.32284859,0.00041643,2]
[406340847,1771767063662,-500.0,0.00041643,7]
[406340848,1771767063671,-500.0,0.00041643,16]
[406340849,1771767063680,-500.0,0.00041643,16]
[406340850,1771767063690,-500.0,0.00041643,16]
[406340851,1771767063700,-6738.06,0.00041643,16]
[406340852,1771767063709,-500.0,0.00041643,16]
[406340853,1771767063718,-500.0,0.00041643,16]
[406340854,1771767063728,-500.0,0.00041643,16]
[406340855,1771767063738,-842.33,0.00041643,16]
[406340856,1771767063748,-619.52,0.00041643,16]
[406340857,1771767063757,-500.0,0.00041643,16]
[406340858,1771767063767,-500.0,0.00041643,16]
[406340859,1771767063776,-1217.76,0.00041643,16]
[406340860,1771767063785,-500.0,0.00041643,16]
[406340861,1771767063795,-150.0,0.00041733,2]
[406340862,1771767063805,-2047.84,0.00041758,2]
[406340863,1771767063815,-151.0,0.00041917,30]
[406340864,1771767063824,-500.0,0.00041917,16]
[406340865,1771767063834,-200.0,0.00041917,16]
[406340866,1771767063843,-500.0,0.00041917,7]
[406340867,1771767063853,-500.0,0.00041917,16]
[406340868,1771767063862,-500.0,0.00041917,16]
[406340869,1771767063871,-500.0,0.00041917,16]
[406340870,1771767063881,-6738.06,0.00041917,16]
[406340871,1771767063890,-500.0,0.00041917,16]
[406340872,1771767063900,-500.0,0.00041917,16]
[406340873,1771767063908,-500.0,0.00041917,16]
[406340874,1771767063916,-842.33,0.00041917,16]
[406340875,1771767063926,-619.52,0.00041917,16]
[406340876,1771767063935,-500.0,0.00041917,16]
[406340877,1771767063945,-390.04290093,0.00041917,16]
[406340878,1771767063954,-1217.76,0.00041917,16]
[406340879,1771767063964,-500.0,0.00041917,16]
[406340880,1771767063974,-740.52,0.00041993,2]
[406340881,1771767063983,-11423.30607463,0.00042,10]
[406340882,1771767063993,-500.0,0.00042,7]
[406340883,1771767064002,-744.00654836,0.00042,7]
[406340884,1771767064011,-2047.84,0.00042034,2]
[406340885,1771767064020,-400.0,0.00042082,30]
[406340886,1771767064030,-386.0,0.00042082,30]
[406340887,1771767064039,-500.0,0.00042191,16]
[406340888,1771767064048,-200.0,0.00042191,16]
[406340889,1771767064058,-500.0,0.00042191,7]
[406340890,1771767064068,-500.0,0.00042191,16]
[406340891,1771767064078,-317.51178744,0.00042191,16]
[406340892,1771767064087,-500.0,0.00042191,16]
[406340893,1771767064096,-6738.06,0.00042191,16]
[406340894,1771767064106,-500.0,0.00042191,16]
[406340895,1771767064116,-500.0,0.00042191,16]
[406340896,1771767064126,-500.0,0.00042191,16]
[406340897,1771767064135,-842.33,0.00042191,16]
[406340898,1771767064145,-619.52,0.00042191,16]
[406340899,1771767064155,-999.0,0.00042191,120]
[406340900,1771767064164,-500.0,0.00042191,16]
[406340901,1771767064173,-1217.76,0.00042191,16]
[406340902,1771767064183,-500.0,0.00042191,16]
[406340903,1771767064193,-500.0,0.000423,7]
[406340904,1771767064202,-500.0,0.000423,7]
[406340905,1771767064212,-24044.8,0.000423,14]
[406340906,1771767064221,-2047.84,0.0004231,2]
[406340907,1771767064230,-250.0,0.00042318,120]
[406340908,1771767064239,-250.0,0.00042318,120]
[406340909,1771767064247,-216.0,0.00042318,120]
[406340910,1771767064256,-510.12,0.00042322,120]
[406340911,1771767064265,-500.0,0.00042465,16]
[406340912,1771767064274,-200.0,0.00042465,16]
[406340913,1771767064283,-500.0,0.00042465,7]
[406340914,1771767064292,-500.0,0.00042465,16]
[406340915,1771767064301,-500.0,0.00042465,16]
[406340916,1771767064310,-6738.06,0.00042465,16]
[406340917,1771767064319,-500.0,0.00042465,16]
[406340918,1771767064328,-379.3514575,0.00042465,16]
[406340919,1771767064337,-500.0,0.00042465,16]
[406340920,1771767064347,-842.33,0.00042465,16]
[406340921,1771767064357,-619.52,0.00042465,16]
[406340922,1771767064367,-500.0,0.00042465,16]
[406340923,1771767064377,-1217.76,0.00042465,16]
[406340924,1771767064386,-500.0,0.00042465,16]
[406340925,1771767064395,-2000.0,0.0004252,2]
[406340926,1771767064405,-1871.0,0.0004252,2]
[406340927,1771767064414,-450.0,0.0004252,2]
[406340928,1771767064423,-450.0,0.0004252,2]
[406340929,1771767064432,-450.0,0.0004252,2]
[406340930,1771767064442,-450.0,0.0004252,2]
[406340931,1771767064451,-450.0,0.0004252,2]
[406340932,1771767064460,-450.0,0.0004252,2]
[406340933,1771767064469,-557.0,0.0004252,2]
[406340934,1771767064478,-160.39112489,0.00042555,120]
[406340935,1771767064488,-2260.4831,0.00042566,30]
[406340936,1771767064497,-1000.0,0.00042566,2]
[406340937,1771767064507,-1000.0,0.00042566,2]
[406340938,1771767064516,-1000.0,0.00042566,2]
[406340939,1771767064525,-1000.0,0.00042566,2]
[406340940,1771767064535,-1000.0,0.00042566,2]
[406340941,1771767064545,-1000.0,0.00042566,2]
[406340942,1771767064554,-1000.0,0.00042566,2]
[406340943,1771767064563,-1000.0,0.00042566,2]
[406340944,1771767064573,-1000.0,0.00042566,2]
[406340945,1771767064582,-1000.0,0.00042566,2]
[406340946,1771767064595,-1000.0,0.00042566,2]
[406340947,1771767064605,-1000.0,0.00042566,2]
[406340948,1771767064615,-1000.0,0.00042566,2]
[406340949,1771767064626,-1000.0,0.00042566,2]
[406340950,1771767064635,-1000.0,0.00042566,2]
[406340951,1771767064646,-1000.0,0.00042566,2]
[406340952,1771767064656,-1000.0,0.00042566,2]
[406340953,1771767064666,-1000.0,0.00042566,2]
[406340954,1771767064675,-1000.0,0.00042566,2]
[406340955,1771767064685,-1000.0,0.00042566,2]
[406340956,1771767064695,-1000.0,0.00042566,2]
[406340957,1771767064706,-1000.0,0.00042566,2]
[406340958,1771767064716,-1000.0,0.00042566,2]
[406340959,1771767064726,-1000.0,0.00042566,2]
[406340960,1771767064736,-1000.0,0.00042566,2]
[406340961,1771767064747,-1000.0,0.00042566,2]
[406340962,1771767064757,-1000.0,0.00042566,2]
[406340963,1771767064864,-1000.0,0.00042566,2]
[406340964,1771767064875,-1000.0,0.00042566,2]
[406340965,1771767064884,-1000.0,0.00042566,2]
[406340966,1771767064894,-1000.0,0.00042566,2]
[406340967,1771767064903,-1000.0,0.00042566,2]
[406340968,1771767064913,-1000.0,0.00042566,2]
[406340969,1771767064922,-1000.0,0.00042566,2]
[406340970,1771767064932,-1000.0,0.00042566,2]
[406340971,1771767064941,-1000.0,0.00042566,2]
[406340972,1771767064951,-1000.0,0.00042566,2]
[406340973,1771767064960,-1000.0,0.00042566,2]
[406340974,1771767064969,-1000.0,0.00042566,2]
[406340975,1771767064979,-1000.0,0.00042566,2]
[406340976,1771767064988,-1000.0,0.00042566,2]
[406340977,1771767064997,-1000.0,0.00042566,2]
[406340978,1771767065007,-1000.0,0.00042566,2]
[406340979,1771767065016,-1000.0,0.00042566,2]
[406340980,1771767065025,-1000.0,0.00042566,2]
[406340981,1771767065035,-1000.0,0.00042566,2]
[406340982,1771767065045,-1000.0,0.00042566,2]
[406340983,1771767065055,-1000.0,0.00042566,2]
[406340984,1771767065064,-1000.0,0.00042566,2]
[406340985,1771767065074,-1000.0,0.00042566,2]
[406340986,1771767065083,-1000.0,0.00042566,2]
[406340987,1771767065093,-1000.0,0.00042566,2]
[406340988,1771767065102,-1000.0,0.00042566,2]
[406340989,1771767065111,-1000.0,0.00042566,2]
[406340990,1771767065121,-1000.0,0.00042566,2]
[406340991,1771767065130,-1000.0,0.00042566,2]
[406340992,1771767065140,-1000.0,0.00042566,2]
[406340993,1771767065150,-1000.0,0.00042566,2]
[406340994,1771767065160,-1000.0,0.00042566,2]
[406340995,1771767065169,-1000.0,0.00042566,2]
[406340996,1771767065178,-1000.0,0.00042566,2]
[406340997,1771767065187,-1000.0,0.00042566,2]
[406340998,1771767065197,-1000.0,0.00042566,2]
[406340999,1771767065206,-1000.0,0.00042566,2]
[406341000,1771767065216,-1000.0,0.00042566,2]
[406341001,1771767065226,-884.0,0.00042566,2]
[406341002,1771767065236,-8973.47,0.00042566,2]
[406341003,1771767065246,-2047.84,0.00042585,2]
[406341004,1771767065255,-151.0,0.00042602,33]
[406341005,1771767065266,-2109.93352787,0.00042679,14]
[406341006,1771767065277,-100000.0,0.000427,2]
[406341007,1771767065287,-150.0,0.00042733,2]
[406341008,1771767065298,-500.0,0.00042739,16]
[406341009,1771767065307,-200.0,0.00042739,16]
[406341010,1771767065318,-500.0,0.00042739,7]
[406341011,1771767065327,-500.0,0.00042739,16]
[406341012,1771767065337,-500.0,0.00042739,16]
[406341013,1771767065347,-6738.06,0.00042739,16]
[406341014,1771767065357,-500.0,0.00042739,16]
[406341015,1771767065367,-500.0,0.00042739,16]
[406341016,1771767065378,-842.33,0.00042739,16]
[406341017,1771767065388,-619.52,0.00042739,16]
[406341018,1771767065400,-500.0,0.00042739,16]
[406341019,1771767065409,-1217.76,0.00042739,16]
[406341020,1771767065419,-500.0,0.00042739,16]
[406341021,1771767065428,-3395.76138859,0.00042784,14]
[406341022,1771767065437,-200.0,0.00042793,120]
[406341023,1771767065447,-100000.0,0.000428,2]
[406341024,1771767065456,-66963.0,0.000428,2]
[406341025,1771767065465,-1022.52,0.000428,14]
[406341026,1771767065474,-2047.84,0.00042861,2]
[406341027,1771767065484,-100000.0,0.000429,2]
[406341028,1771767065493,-3415.64921129,0.00043,7]
[406341029,1771767065503,-3415.64921129,0.00043,7]
[406341030,1771767065512,-37620.78462305,0.00043,7]
[406341031,1771767065521,-37620.78462305,0.00043,7]
[406341032,1771767065531,-27584.45568666,0.00043,7]
[406341033,1771767065541,-27584.45568666,0.00043,7]
[406341034,1771767065550,-92500.0,0.00043,7]
[406341035,1771767065560,-92500.0,0.00043,7]
[406341036,1771767065570,-13792.22784333,0.00043,7]
[406341037,1771767065581,-13792.22784333,0.00043,7]
[406341038,1771767065596,-87588.58691521,0.00043,7]
[406341039,1771767065607,-87588.58691521,0.00043,7]
[406341040,1771767065618,-201.41179548,0.00043,7]
[406341041,1771767065630,-201.41179548,0.00043,7]
[406341042,1771767065640,-1888.38948522,0.00043,7]
[406341043,1771767065649,-1888.38948522,0.00043,7]
[406341044,1771767065659,-254.91555669,0.00043,7]
[406341045,1771767065668,-254.91555669,0.00043,7]
[406341046,1771767065678,-26462.77939342,0.00043,7]
[406341047,1771767065688,-26462.77939342,0.00043,7]
[406341048,1771767065697,-164.12840156,0.00043,7]
[406341049,1771767065708,-164.12840156,0.00043,7]
[406341050,1771767065718,-1806.84960159,0.00043,7]
[406341051,1771767065730,-1806.84960159,0.00043,7]
[406341052,1771767065739,-18810.39231152,0.00043,7]
[406341053,1771767065749,-18810.39231152,0.00043,7]
[406341054,1771767065758,-230.85505027,0.00043,7]
[406341055,1771767065767,-230.85505027,0.00043,7]
[406341056,1771767065777,-1254.42261948,0.00043,7]
[406341057,1771767065786,-1254.42261948,0.00043,7]
[406341058,1771767065796,-755.687791,0.00043,2]
[406341059,1771767065806,-744.00654836,0.00043,7]
[406341060,1771767065815,-500.0,0.00043013,16]
[406341061,1771767065825,-200.0,0.00043013,16]
[406341062,1771767065835,-500.0,0.00043013,7]
[406341063,1771767065845,-500.0,0.00043013,16]
[406341064,1771767065854,-500.0,0.00043013,16]
[406341065,1771767065863,-6738.06,0.00043013,16]
[406341066,1771767065873,-500.0,0.00043013,16]
[406341067,1771767065883,-500.0,0.00043013,16]
[406341068,1771767065893,-842.33,0.00043013,16]
[406341069,1771767065902,-619.52,0.00043013,16]
[406341070,1771767065912,-500.0,0.00043013,16]
[406341071,1771767065921,-1217.76,0.00043013,16]
[406341072,1771767065931,-500.0,0.00043013,16]
[406341073,1771767065941,-567.03836372,0.00043109,14]
[406341074,1771767065951,-2047.84,0.00043137,2]
[406341075,1771767065961,-999.0,0.0004315,120]
[406341076,1771767065971,-159.97,0.000432,30]
[406341077,1771767065980,-151.0,0.00043287,36]
[406341078,1771767065990,-500.0,0.00043287,16]
[406341079,1771767066000,-200.0,0.00043287,16]
[406341080,1771767066010,-500.0,0.00043287,7]
[406341081,1771767066019,-500.0,0.00043287,16]
[406341082,1771767066028,-500.0,0.00043287,16]
[406341083,1771767066038,-6738.06,0.00043287,16]
[406341084,1771767066047,-398.80762266,0.00043287,16]
[406341085,1771767066057,-268.63982184,0.00043287,16]
[406341086,1771767066067,-842.33,0.00043287,16]
[406341087,1771767066076,-619.52,0.00043287,16]
[406341088,1771767066086,-608.41795144,0.00043287,16]
[406341089,1771767066095,-1217.76,0.00043287,16]
[406341090,1771767066105,-435.91666727,0.00043287,16]
[406341091,1771767066115,-766.74,0.00043352,60]
[406341092,1771767066124,-350.0,0.00043408,7]
[406341093,1771767066134,-350.0,0.00043408,7]
[406341094,1771767066144,-350.0,0.00043408,7]
[406341095,1771767066153,-350.0,0.00043408,7]
[406341096,1771767066163,-350.0,0.00043408,7]
[406341097,1771767066172,-209.0,0.00043408,7]
[406341098,1771767066182,-2047.84,0.00043412,2]
[406341099,1771767066191,-500.0,0.00043561,16]
[406341100,1771767066201,-221.20228641,0.00043561,16]
[406341101,1771767066211,-500.0,0.00043561,7]
[406341102,1771767066221,-500.0,0.00043561,16]
[406341103,1771767066231,-500.0,0.00043561,16]
[406341104,1771767066240,-6738.06,0.00043561,16]
[406341105,1771767066250,-842.33,0.00043561,16]
[406341106,1771767066260,-619.52,0.00043561,16]
[406341107,1771767066271,-1217.76,0.00043561,16]
[406341108,1771767066280,-510.12,0.00043652,120]
[406341109,1771767066291,-150.0,0.00043733,2]
[406341110,1771767066301,-2140.55748924,0.00043739,14]
[406341111,1771767066310,-500.0,0.00043835,7]
[406341112,1771767066321,-500.0,0.00043835,21]
[406341113,1771767066331,-6738.06,0.00043835,20]
[406341114,1771767066341,-842.33,0.00043835,120]
[406341115,1771767066351,-619.52,0.00043835,90]
[406341116,1771767066361,-1217.76,0.00043835,120]
[406341117,1771767066370,-164.716107,0.00043836,2]
[406341118,1771767066380,-200.0,0.00043836,120]
[406341119,1771767066390,-150.0,0.00043836,120]
[406341120,1771767066400,-161.17339014,0.0004387,5]
[406341121,1771767066410,-150.0,0.00043891,120]
[406341122,1771767066420,-24044.8,0.000439,14]
[406341123,1771767066429,-150.0,0.00043946,120]
[406341124,1771767066439,-151.0,0.00043972,39]
[406341125,1771767066448,-1053.19851307,0.00044,21]
[406341126,1771767066458,-152.25370764,0.00044,120]
[406341127,1771767066468,-3641.65240288,0.00044022,14]
[406341128,1771767066478,-500.0,0.00044109,7]
[406341129,1771767066487,-513.99295659,0.00044109,21]
[406341130,1771767066497,-6738.06,0.00044109,20]
[406341131,1771767066507,-842.33,0.00044109,120]
[406341132,1771767066516,-619.52,0.00044109,90]
[406341133,1771767066526,-999.0,0.00044109,120]
[406341134,1771767066535,-1217.76,0.00044109,120]
[406341135,1771767066546,-150.0,0.00044222,2]
[406341136,1771767066560,-151.0,0.00044242,7]
[406341137,1771767066573,-1022.53,0.000443,14]
[406341138,1771767066585,-341.81223765,0.00044383,7]
[406341139,1771767066596,-6738.06,0.00044383,20]
[406341140,1771767066606,-842.33,0.00044383,120]
[406341141,1771767066616,-619.52,0.00044383,90]
[406341142,1771767066625,-1217.76,0.00044383,120]
[406341143,1771767066634,-204.82,0.00044402,30]
[406341144,1771767066643,-151.0,0.00044657,42]
[406341145,1771767066653,-6738.23435357,0.00044657,20]
[406341146,1771767066662,-842.39429282,0.00044657,120]
[406341147,1771767066671,-619.64,0.00044657,90]
[406341148,1771767066680,-1217.92,0.00044657,120]
[406341149,1771767066689,-1022.52,0.000447,14]
[406341150,1771767066700,-150.0,0.00044733,2]
[406341151,1771767066710,-200.0,0.00044758,120]
[406341152,1771767066719,-2354.92521886,0.000448,14]
[406341153,1771767066729,-24044.8,0.000448,2]
[406341154,1771767066739,-207.45,0.00044904,30]
[406341155,1771767066748,-510.12,0.00044981,120]
[406341156,1771767066757,-14301.6540536,0.00045,2]
[406341157,1771767066767,-160.0,0.00045,30]
[406341158,1771767066776,-11657.73251297,0.00045,2]
[406341159,1771767066786,-3845.81325808,0.00045,120]
[406341160,1771767066796,-10000.0,0.00045,30]
[406341161,1771767066806,-1114.27048274,0.00045068,120]
[406341162,1771767066815,-200.0,0.000451,120]
[406341163,1771767066825,-3740.00880859,0.00045261,14]
[406341164,1771767066834,-151.0,0.00045342,45]
[406341165,1771767066844,-2446.79710297,0.0004586,14]
[406341166,1771767066853,-133390.19255705,0.00046,30]
[406341167,1771767066863,-151.0,0.00046026,48]
[406341168,1771767066871,-350.0,0.00046027,7]
[406341169,1771767066881,-350.0,0.00046027,7]
[406341170,1771767066890,-350.0,0.00046027,7]
[406341171,1771767066899,-350.0,0.00046027,7]
[406341172,1771767066908,-350.0,0.00046027,7]
[406341173,1771767066917,-347.0,0.00046027,7]
[406341174,1771767066926,-350.0,0.00046027,7]
[406341175,1771767066935,-350.0,0.00046027,7]
[406341176,1771767066945,-350.0,0.00046027,7]
[406341177,1771767066954,-350.0,0.00046027,7]
[406341178,1771767066963,-350.0,0.00046027,7]
[406341179,1771767066973,-207.0,0.00046027,7]
[406341180,1771767066982,-350.0,0.00046027,7]
[406341181,1771767066992,-350.0,0.00046027,7]
[406341182,1771767067002,-350.0,0.00046027,7]
[406341183,1771767067012,-350.0,0.00046027,7]
[406341184,1771767067021,-350.0,0.00046027,7]
[406341185,1771767067031,-150.0,0.00046027,7]
[406341186,1771767067041,-151.0,0.00046027,48]
[406341187,1771767067050,-350.0,0.00046085,7]
[406341188,1771767067060,-350.0,0.00046085,7]
[406341189,1771767067069,-350.0,0.00046085,7]
[406341190,1771767067078,-350.0,0.00046085,7]
[406341191,1771767067088,-350.0,0.00046085,7]
[406341192,1771767067097,-171.0,0.00046085,7]
[406341193,1771767067106,-200.0,0.00046253,120]
[406341194,1771767067116,-510.12,0.00046311,120]
[406341195,1771767067125,-286.65214526,0.00046466,120]
[406341196,1771767067135,-4526.86005431,0.000465,14]
[406341197,1771767067147,-300.0,0.00046508,14]
[406341198,1771767067159,-300.0,0.00046508,14]
[406341199,1771767067168,-300.0,0.00046508,14]
[406341200,1771767067177,-300.0,0.00046508,14]
[406341201,1771767067187,-300.0,0.00046508,14]
[406341202,1771767067197,-214.0,0.00046508,14]
[406341203,1771767067206,-513.96,0.00046557,60]
[406341204,1771767067216,-151.0,0.00046711,51]
[406341205,1771767067225,-151.0,0.00046712,51]
[406341206,1771767067339,-150.0,0.000469,5]
[406341207,1771767067350,-2569.29294847,0.0004692,14]
[406341208,1771767067360,-150.0,0.0004699,120]
[406341209,1771767067370,-409.64,0.00047112,30]
[406341210,1771767067379,-780.33334577,0.00047149,14]
[406341211,1771767067389,-200.0,0.00047271,120]
[406341212,1771767067402,-939.64561904,0.00047344,14]
[406341213,1771767067412,-151.0,0.00047396,54]
[406341214,1771767067421,-151.0,0.00047397,54]
[406341215,1771767067431,-150.0,0.000474,5]
[406341216,1771767067440,-160.0,0.000475,120]
[406341217,1771767067450,-200.0,0.00047502,120]
[406341218,1771767067459,-510.12,0.00047641,120]
[406341219,1771767067470,-4821.92927146,0.00047739,14]
[406341220,1771767067479,-160.39112489,0.00047874,120]
[406341221,1771767067489,-150.0,0.000479,5]
[406341222,1771767067500,-2645.8528519,0.00047981,14]
[406341223,1771767067510,-64513.03442996,0.00048,120]
[406341224,1771767067521,-160.0,0.00048,120]
[406341225,1771767067531,-151.0,0.00048081,57]
[406341226,1771767067543,-151.0,0.00048082,57]
[406341227,1771767067553,-150.0,0.000484,5]
[406341228,1771767067562,-200.0,0.00048438,120]
[406341229,1771767067573,-154.47310462,0.00048767,60]
[406341230,1771767067586,-150.0,0.000489,5]
[406341231,1771767067600,-510.12,0.0004897,120]
[406341232,1771767067611,-5313.71130003,0.00048978,14]
[406341233,1771767067621,-317.48331846,0.00049,15]
[406341234,1771767067633,-160.0,0.00049,120]
[406341235,1771767067643,-2783.66067808,0.00049041,14]
[406341236,1771767067653,-200.0,0.00049239,120]
[406341237,1771767067664,-200.0,0.0004926,120]
[406341238,1771767067673,-350.0,0.00049314,14]
[406341239,1771767067683,-350.0,0.00049314,14]
[406341240,1771767067693,-350.0,0.00049314,14]
[406341241,1771767067703,-350.0,0.00049314,14]
[406341242,1771767067713,-435.0,0.00049314,14]
[406341243,1771767067723,-300.0,0.00049314,14]
[406341244,1771767067733,-300.0,0.00049314,14]
[406341245,1771767067744,-300.0,0.00049314,14]
[406341246,1771767067754,-300.0,0.00049314,14]
[406341247,1771767067764,-300.0,0.00049314,14]
[406341248,1771767067775,-213.0,0.00049314,14]
[406341249,1771767067787,-300.0,0.00049314,14]
[406341250,1771767067797,-300.0,0.00049314,14]
[406341251,1771767067806,-300.0,0.00049314,14]
[406341252,1771767067815,-300.0,0.00049314,14]
[406341253,1771767067826,-300.0,0.00049314,14]
[406341254,1771767067837,-162.0,0.00049314,14]
[406341255,1771767067847,-437.30167081,0.00049315,120]
[406341256,1771767067856,-1723.27,0.00049315,120]
[406341257,1771767067866,-300.0,0.00049377,14]
[406341258,1771767067875,-300.0,0.00049377,14]
[406341259,1771767067885,-300.0,0.00049377,14]
[406341260,1771767067895,-300.0,0.00049377,14]
[406341261,1771767067905,-300.0,0.00049377,14]
[406341262,1771767067914,-180.0,0.00049377,14]
[406341263,1771767067923,-200.0,0.00049409,120]
[406341264,1771767067933,-1723.27,0.00049589,120]
[406341265,1771767067943,-239.13,0.00049801,8]
[406341266,1771767067953,-614.46,0.00049822,30]
[406341267,1771767067963,-175.56,0.00049858,120]
[406341268,1771767067973,-1723.27,0.00049863,120]
[406341269,1771767067983,-1500.0,0.000499,20]
[406341270,1771767067992,-150.0,0.000499,120]
[406341271,1771767068002,-400.0,0.0004998,120]
[406341272,1771767068012,-151.0,0.00049999,60]
[406341273,1771767068022,-448.81130674,0.00049999,7]
[406341274,1771767068032,-385.64742026,0.00049999,120]
[406341275,1771767068042,-554.90208957,0.00049999,120]
[406341276,1771767068052,-386.67221472,0.00049999,120]
[406341277,1771767068061,-500.0,0.00049999,120]
[406341278,1771767068071,-500.0,0.00049999,120]